Cogmind - Beta 16 --- EXPLORER MODE // 2025.12.25 @ 16:30:03 Player: K.K.Y. Result: Destroyed by UT-XKO(R) with Subdweller Machine Gun Performance ------------- Evolutions (0) 0 Regions Visited (3) 600 Robots Destroyed (24) 120 Value Destroyed (399) 399 Prototype IDs (7) 140 Alien Tech Used (0) 0 Bonus (0) 0 TOTAL SCORE: 1259 Bonus ------- None Cogmind --------- Core Integrity 0/250 Matter 265/300 Energy 99/100 System Corruption 0% Temperature Cool (0) Movement Core (400) Ox7 Location -10/Subcaves Parts ------- > --- POWER (1) -------- (None) > --- PROPULSION (2) --- (None) > --- UTILITY (3) ------ Large Storage Unit > --- WEAPON (2) ------- High-powered Shotgun > --- INVENTORY (15) --- Improved Heat Sink Medium Storage Unit Huge Storage Unit Core Shielding Medium Laser Improved Datajack Mining Laser Mining Laser Makeshift Sword Peak State ------------ > --- POWER ------------ Ion Engine > --- PROPULSION ------- Light Treads Light Treads > --- UTILITY ---------- Large Storage Unit Sensor Array Light Armor Plating > --- WEAPON ----------- Medium Laser Medium Laser > --- INVENTORY -------- Medium Storage Unit Huge Storage Unit Core Shielding High-powered Shotgun Improved Datajack Mining Laser [Rating: 9] Favorites ----------- Power Ion Engine Engine Ion Engine Propulsion Light Treads Treads Light Treads Utility Sensor Array Device Sensor Array Storage Large Storage Unit Protection Light Armor Plating Weapon Medium Laser Energy Gun Medium Laser Ballistic Gun High-powered Shotgun Special Weapon Mining Laser Build | -11 -10 -10 -10 ------- Run | Yrd Mat Min Sub Slots Evolved 1 | . 1 . . Power . | . . . . Propulsion . | . . . . Utility 1 | . 1 . . Weapon . | . . . . Parts Attached 17 | 7 6 3 1 Power 4 | 1 1 2 . Engine 4 | 1 1 2 . Core . | . . . . Reactor . | . . . . Propulsion 3 | 2 1 . . Treads 3 | 2 1 . . Leg . | . . . . Wheel . | . . . . Hover . | . . . . Flight . | . . . . Utility 5 | 3 2 . . Device 2 | 1 1 . . Storage 1 | . 1 . . Processor . | . . . . Hackware . | . . . . Protection 2 | 2 . . . Artifact . | . . . . Weapon 5 | 1 2 1 1 Energy Gun 3 | 1 2 . . Energy Cannon . | . . . . Ballistic Gun 1 | . . . 1 Ballistic Cannon . | . . . . Launcher . | . . . . Special Weapon 1 | . . 1 . Impact Weapon . | . . . . Slashing Weapon . | . . . . Piercing Weapon . | . . . . Special Melee Weapon . | . . . . Unidentified Prototypes . | . . . . Parts Lost 9 | . 1 3 5 Power 3 | . 1 1 1 Propulsion 2 | . . 1 1 Utility 2 | . . 1 1 Weapon 2 | . . . 2 Highest Loss Streak 3 | . 1 3 3 To Critical Strikes . | . . . . Average Backups 7 | 2 3 8 9 Power . | . . . . Propulsion . | . . . . Utility 3 | 1 2 3 4 Weapon 3 | . 1 3 4 Tool/Special . | . . . . Unused Backups 8 | . 1 . 7 Power . | . . . . Propulsion . | . . . . Utility 3 | . . . 3 Weapon 4 | . 1 . 3 Tool/Special 1 | . . . 1 Average Slot Usage (%) 78 | . 93 78 61 Engine 10 | . 8 11 12 Treads 14 | . 25 14 2 Device 12 | . 12 12 12 Storage 11 | . 10 12 12 Protection 3 | . 12 1 . Energy Gun 21 | . 23 22 18 Special Weapon 1 | . . 2 2 Peak Build Rating 9 | 6 8 9 8 Average Rating 6 | 5 7 7 5 On Entrance 5 | . 6 8 7 Avg Prop Armor Cover (%) . | . . . . Naked Turns . | . . . . Heaviest Build 33 | 9 33 33 31 Greatest Support 40 | 40 40 40 20 Greatest Overweight (x) 10 | . . 1 10 Average Overweight (x) 1 | . . . 5 Largest Inventory Capacity 15 | 5 15 15 15 Average Capacity 14 | 5 13 15 15 Most Carried 11 | 5 4 11 10 Average Carried 7 | 2 3 8 9 Final Capacity 15 | 5 15 15 15 Final Carried 10 | 3 4 10 9 Class Distribution -------------------- 100% | Hacker-Mutant Dominant Class ---------------- Hacker-Mutant | -10/Materials Hacker-Mutant | -10/Mines Hacker-Mutant | -10/Subcaves Resources | -11 -10 -10 -10 ----------- Run | Yrd Mat Min Sub Matter Collected 365 | 270 53 37 5 Remotely . | . . . . Salvage Created 720 | 129 355 124 112 Parts 47 | 9 29 . 9 Haulers Intercepted 1 | . 1 . . Recyclers Shooed 1 | . 1 . . Parts Field Recycled . | . . . . Retrieved Matter . | . . . . Parts Self-Destructed . | . . . . Prevented . | . . . . Parts Restored . | . . . . Kills | -11 -10 -10 -10 ------- Run | Yrd Mat Min Sub Combat Hostiles Destroyed 23 | . 11 9 3 Guns 23 | . 11 9 3 Classes Destroyed 8 | 2 4 1 1 Tunneler 3 | 3 . . . Hauler 1 | . 1 . . Recycler 1 | 1 . . . Watcher 3 | . 3 . . Swarmer 10 | . 8 2 . Grunt 3 | . 3 . . Subdweller 3 | . . . 3 Assembled 7 | . . 7 . Best Kill Streak 5 | 2 5 5 1 Combat Bots Only 5 | . 4 5 1 Max Kills in Single Turn 1 | 1 1 1 1 Gunslinging . | . . . . Exploded . | . . . . Melee . | . . . . Uniques/NPCs Destroyed . | . . . . Combat | -11 -10 -10 -10 -------- Run | Yrd Mat Min Sub Hostile Shots Fired 157 | . 57 63 37 Missed 33 | . 15 10 8 Hits 124 | . 42 53 29 Melee 5 | . . 5 . Projectile 119 | . 42 48 29 AOE 1 | . . . 1 Critical Strikes 2 | . . 1 1 Part Disruptions 3 | . . 3 . Damage Taken 1106 | . 263 446 397 Core 252 | . 55 59 138 Absorbed by Shields . | . . . . Ignored by Resistances 692 | . 181 278 233 Core Remaining (%) 100 | 100 . . . Volleys Fired 129 | 22 36 48 23 Largest 2 | 1 2 2 2 Hottest 150 | 50 100 150 100 Shots Fired 205 | 22 64 84 35 Gun 189 | 22 64 68 35 Cannon . | . . . . Launcher . | . . . . Special 16 | . . 16 . Kinetic 10 | . . . 10 Thermal 195 | 22 64 84 25 Explosive . | . . . . Electromagnetic . | . . . . Robot Hit Streak 16 | 9 14 14 16 Robot Miss Streak 5 | 1 3 5 1 Penetration Max . | . . . . Secondary Targets 4 | . 3 1 . Max Gunslinging Chain 1 | . 1 1 . Shots Hit Robots 128 | 19 42 34 33 Core Hits 47 | 5 19 16 7 Critical Kills . | . . . . Critical Parts Destroyed . | . . . . Critical Strikes 10 | 2 5 2 1 Burn 10 | 2 5 2 1 Melee Attacks . | . . . . Impact . | . . . . Slashing . | . . . . Piercing . | . . . . Sneak Attacks . | . . . . Combat Hostiles . | . . . . Follow-up Attacks . | . . . . Damage Inflicted 1776 | 236 565 437 538 Guns 1776 | 236 565 437 538 Cannons . | . . . . Explosions . | . . . . Melee . | . . . . Ramming . | . . . . Kinetic 261 | . . . 261 Thermal 1515 | 236 565 437 277 Explosive . | . . . . Electromagnetic . | . . . . Impact . | . . . . Slashing . | . . . . Piercing . | . . . . Highest Corruption . | . . . . Average Corruption . | . . . . Corruption Purged . | . . . . Corruption Blocked . | . . . . Overload Shots . | . . . . Overflow Damage . | . . . . Projectiles . | . . . . Explosions . | . . . . Melee . | . . . . Knockbacks . | . . . . Impact . | . . . . Kinetic . | . . . . Secondary . | . . . . Self-Inflicted Damage . | . . . . Shots . | . . . . Rammed . | . . . . Targets Rammed . | . . . . Kicked . | . . . . Crushed . | . . . . Highest Temperature 324 | 192 256 324 . Average Temperature 107 | 71 68 141 . Received Heat Transfer 378 | . 54 306 18 Effects 3 | . . 3 . Energy Bleed 1 | . . 1 . Interference 2 | . . 2 . Siege Activations . | . . . . Martial Activations . | . . . . Shielding Activations . | . . . . Robots Disrupted . | . . . . Combat Hostiles . | . . . . Robots Corrupted . | . . . . Combat Hostiles . | . . . . Parts Fried . | . . . . Impact Corruptions . | . . . . Robots Melted . | . . . . Combat Hostiles . | . . . . Parts Melted 6 | . 4 . 2 Heat Transferred 5217 | 851 2035 1443 888 Parts Sabotaged . | . . . . Parts Stolen . | . . . . Parts Stripped . | . . . . Power Chain Reactions . | . . . . Alert | -11 -10 -10 -10 ------- Run | Yrd Mat Min Sub Maximum Alert Level . | . . . . Low Security (%) 100 | 100 100 100 . Level 1 . | . . . . Level 2 . | . . . . Level 3 . | . . . . Level 4 . | . . . . Level 5 . | . . . . High Security . | . . . . Max Security . | . . . . Peak Influence 82 | 10 82 35 . Initial . | . . . . Average 5 | . 16 . . Influence Increases 409 | 20 329 60 . Destroy 0b10 Robot/C 260 | . 220 40 . Destroy 0b10 Robot/NC 40 | 20 20 . . Destroy Leader 68 | . 58 10 . Successful Hack 38 | . 30 8 . Destroy Structure 3 | . 1 2 . Influence Decreases 409 | 20 329 60 . Time Decay 409 | 20 329 60 . Squads Dispatched 2 | . 1 1 . Investigation 2 | . 1 1 . Extermination . | . . . . Reinforcement . | . . . . Assault . | . . . . Garrison . | . . . . Intercept . | . . . . Searches Triggered . | . . . . Construction Impeded . | . . . . Haulers Reinforced . | . . . . Active Scanning Responses . | . . . . Cargo Convoy Interrupts . | . . . . Stealth | -11 -10 -10 -10 --------- Run | Yrd Mat Min Sub Distress Signals 2 | . 1 1 . Communications Jammed . | . . . . Distress Signals . | . . . . Times Spotted 43 | . 17 19 7 Peak Tracking Total 5 | . 4 5 3 Tactical Retreats 1 | . . . 1 Traps | -11 -10 -10 -10 ------- Run | Yrd Mat Min Sub Traps Triggered 3 | . 3 . . Indirectly . | . . . . Trap Hack Attempts . | . . . . Triggered . | . . . . Disarmed . | . . . . Reprogrammed . | . . . . Reused . | . . . . Traps Extracted . | . . . . Installed . | . . . . Triggered . | . . . . Machines | -11 -10 -10 -10 ---------- Run | Yrd Mat Min Sub Machines Disabled . | . . . . Max in Single Turn . | . . . . Machines Repaired . | . . . . Machines Dismantled . | . . . . Machines Sabotaged . | . . . . Overloaded Fab Kills . | . . . . Hacking | -11 -10 -10 -10 --------- Run | Yrd Mat Min Sub Machines Accessed 10 | . 7 3 . Terminals 9 | . 7 2 . Fabricators . | . . . . Repair Stations . | . . . . Recycling Units . | . . . . Scanalyzers . | . . . . Garrison Access . | . . . . Total Hacks 47 | . 41 6 . Successful 29 | . 26 3 . Failed 18 | . 15 3 . Catastrophic . | . . . . Database Lockouts . | . . . . Manual 45 | . 40 5 . Terminals 46 | . 41 5 . Fabricators . | . . . . Repair Stations . | . . . . Recycling Units . | . . . . Scanalyzers . | . . . . Garrison Access . | . . . . Terminal Hacks 22 | . 19 3 . Robot Analysis 1 | . 1 . . Prototype ID Bank 20 | . 18 2 . Open Door 1 | . . 1 . Fabricator Hacks . | . . . . Repair Station Hacks . | . . . . Recycling Unit Hacks . | . . . . Scanalyzer . | . . . . Garrison Access Hacks . | . . . . Unauthorized Hacks 7 | . 7 . . Terminals 7 | . 7 . . Botnet 7 | . 7 . . Fabricators . | . . . . Repair Stations . | . . . . Recycling Units . | . . . . Scanalyzers . | . . . . Garrison Access . | . . . . Data Cores Recovered . | . . . . Used . | . . . . Hacking Detections 9 | . 7 2 . Full Trace Events 2 | . 2 . . Feedback Events . | . . . . Feedback Blocked . | . . . . Robot Schematics Acquired . | . . . . Robots Built . | . . . . Authchips . | . . . . Time . | . . . . Total Robot Build Rating . | . . . . Part Schematics Acquired . | . . . . Parts Built . | . . . . Authchips . | . . . . Time . | . . . . Total Part Build Rating . | . . . . Part Studies Acquired . | . . . . Parts Repaired . | . . . . Time . | . . . . Parts Recycled . | . . . . Recycled Matter . | . . . . Retrieved Matter . | . . . . Retrieved Components . | . . . . Parts Scanalyzed . | . . . . Part Schematics Acquired . | . . . . Parts Damaged . | . . . . Bothacking | -11 -10 -10 -10 ------------ Run | Yrd Mat Min Sub Used RIF Installer . | . . . . Robots Hacked . | . . . . Non-combat . | . . . . Combat . | . . . . Robot Hacks Applied . | . . . . Relay Couplers Released . | . . . . Fabnet Peak Effective % . | . . . . Robots Rewired . | . . . . Allies Hacked . | . . . . Hacks Repelled . | . . . . Allies | -11 -10 -10 -10 -------- Run | Yrd Mat Min Sub Total Allies 3 | . . 3 . Largest Group 3 | . . 3 . Highest-Rated Group 40 | . . 40 . Highest-Rated Ally 16 | . . 16 . Total Orders . | . . . . Ally Attacks 48 | . . 48 . Total Damage 477 | . . 477 . Kills 9 | . . 9 . Allies Corrupted . | . . . . Allies Melted . | . . . . Intel | -11 -10 -10 -10 ------- Run | Yrd Mat Min Sub Active Infowar (turns) 2561 | 167 931 733 730 Sensors 2561 | 167 931 733 730 Robot Analysis Total 1 | . 1 . . Derelict Logs Recovered . | . . . . Drone Launches . | . . . . Drone Recoveries . | . . . . Exploration | -11 -10 -10 -10 ------------- Run | Yrd Mat Min Sub Turns Passed 3846 | 177 931 2007 731 Spaces Moved 1443 | 81 509 693 160 Core 109 | 10 . . 99 Treads 1334 | 71 509 693 61 Legs . | . . . . Wheels . | . . . . Hover . | . . . . Flight . | . . . . Fastest Speed 50 | 50 160 160 240 Average Speed 216 | 146 160 222 401 Slowest Speed 550 | 160 160 240 550 Overloaded Moves . | . . . . Propulsion Burnouts . | . . . . Robots Hopped . | . . . . Potential Cave-ins . | . . . . Cave-ins Triggered . | . . . . Exploration Rate (%) 54 | 3 94 99 20 Regions Visited 3 Branch Regions 2 Pre-discovered Areas 1 | . . 1 . Known Exits Taken 3 | 1 1 1 . Unknown Exits Taken . | . . . . Scrap Searched 1 | . . 1 . Spaces Dug 3 | . . 3 . Terrain Destroyed 3 | . . 3 . Melee . | . . . . Projectile 3 | . . 3 . AOE . | . . . . Terrain Rammed . | . . . . Walls Destroyed . | . . . . Machines Disabled . | . . . . Actions | -11 -10 -10 -10 --------- Run | Yrd Mat Min Sub Total 1934 | 117 562 1040 215 Wait 318 | . . 288 30 Move 1440 | 80 508 692 160 Hop . | . . . . Pick Up 23 | 7 8 8 . Fast Attach 2 | 2 . . . Attach 10 | 5 3 1 1 Detach 1 | 1 . . . Swap 6 | . 3 2 1 Drop 5 | . 4 1 . Fire 129 | 22 36 48 23 Melee . | . . . . Ram . | . . . . Kick . | . . . . Crush . | . . . . Escape Stasis . | . . . . Rewire . | . . . . Trap . | . . . . Miscellaneous . | . . . . Route ------- -11/Scrapyard -10/Materials (discovered 6 exits: *Mat x3 / *Min x2 / *Sub) -10/Mines (discovered 3 exits: *Mat x2 / *Sub) -10/Subcaves History --------- Turn | Location | Event 9 | -11/Scrapyard | Identified exit to Materials 9 | -11/Scrapyard | Discovered exit to Materials (range 16) 178 | -11/Scrapyard | Entered Materials 178 | -10/Materials | Evolved 1 slot: Utility x1 306 | -10/Materials | Build established: Hacker-Mutant 310 | -10/Materials | Identified exit to Mines 310 | -10/Materials | Discovered exit to Mines (range 11) 376 | -10/Materials | Discovered exit to Mines (range 9) 495 | -10/Materials | Identified exit to Materials 495 | -10/Materials | Discovered exit to Materials (range 16) 673 | -10/Materials | Discovered exit to Materials (range 14) 760 | -10/Materials | Identified exit to Subcaves 760 | -10/Materials | Discovered exit to Subcaves (range 8) 978 | -10/Materials | Discovered exit to Materials (range 13) 1109 | -10/Materials | Entered Mines 1110 | -10/Mines | Learned location of Storage (-8) 1246 | -10/Mines | Met a Derelict shopkeep closing up shop 1278 | -10/Mines | Assembled infested the area 1283 | -10/Mines | Assisted by a Guerilla fighting off Assembled 1358 | -10/Mines | Assisted by bots powering up and referring to "LRC-V3" 1447 | -10/Mines | Lost 3 parts (1p1n1u) 1887 | -10/Mines | A weapon hastily lodged in a ceiling crevice suddenly fell to the ground 2104 | -10/Mines | Discovered exit to Materials (range 3) 2155 | -10/Mines | Discovered exit to Materials (range 8) 3112 | -10/Mines | Discovered exit to Subcaves (range 3) 3116 | -10/Mines | Entered Subcaves 3253 | -10/Subcaves | Ambushed by Subdwellers from Twisted Machinery 3347 | -10/Subcaves | Core integrity fell below 50% 3835 | -10/Subcaves | Core integrity fell below 20% 3847 | -10/Subcaves | Destroyed by UT-XKO(R) with Subdweller Machine Gun Last Messages --------------- 03275_ YR-G9Z(O) collects matter. 03278_ Sub. Power Source melted. 03278_ 6W-7U2(R) destroyed. 03281_ YR-G9Z(O) collects matter. 03287_ Subatomizers dissect the Disposable Heat Sink. 03294_ YR-G9Z(O) puts together Flamer. 03298_ Subatomizers dissect the Disposable Heat Sink. 03355_ GS-TR4(R) suffers critical hit (Burn). 03355_ GS-TR4(R) destroyed. 03363_ Acquired 5 matter. 03427_ Subatomizers dissect the Sub. Shrapnel Launcher. 03640_ Med. Laser destroyed. 03640_ Sub. Monowheel melted. 03640_ UA-0DV(R) destroyed. 03828_ Med. Laser destroyed. 03842_ Ion Engine destroyed. 03846_ Sensor Array destroyed. Map ----- +----------------------------------------------------+ | ?????????????????????????????????????????# | | ?????????????????????????????????????????? | | ??????????????????????????????????????????# | | ????????????????????????????? ???????????# | | ???????????????????????????? ??????????? | | ????????????????????????????# #??????????# | | ???????????????????????????## #?????????## | | ???????????????????????????# ?????????# | | ?????????????????????????### ##????????# | | ????????????????????????## # #????????# | | ????????????????? ??????# ###??????## | | ??????????????### ?????## ##???#### | | ??????????????# R????## ##?## # | | ??????????????# ???## ### | | ??????????????? ???# ## ## | | ??????????????## ????# ## #?## | | ??????????????# ???## ##### # | | ??????????????## #### ## ### | | ??????????????# ## ##?? | | ???????????????#R ### #??? | | ????????????#### ####?####??? | | ????????????# ######??????????? | | ????????????## ##???????????????? | | ??????????##?#" ##????????????????? | | ??????????# ## ##?????????????????? | | ????????#" ##" ##@ ##??????????????????? | | ????????##???#?# R ##???????????????????? | | ??????????????# ###????????????????????? | | ??????????????## ###??????????????????????? | | ???????????????##?????????????????????????? | | ??????????????????????????????????????????? | | ??????????????????????????????????????????# | | ?????????????????????????????????????????## | | ?????????????????????????????????????????# | | ?????????????????????????????????????????# | | ?????????????????????????????????????????## | | ??????????????????????????????????????????? | | ??????????????????????????????????????????? | | ??????????????????????????????????????????? | | ??????????????????????????????????????????? | | ??????????????????????????????????????????? | | ??????????????????????????????????????????? | | ??????????????????????????????????????????# | | ?????????????????????????????????????????## | | ?????????????????????????????????????????# | | ?????????????????????????????????????????# | | ?????????????????????????????????????????# | | ?????????????????????????????????????????# | | ?????????????????????????????????????????#" | | ?????????????????????????????????????????## | +----------------------------------------------------+ Best States ------------- Heat Dissipation 25 Energy Generation 10 Energy Capacity 250 Matter Stores 300 Matter Capacity 300 Sight Range 16 Robot Scan Range 14 Terrain Scan Density 10 Armor Coverage 150 Resistance: KI 35 Resistance: TH 35 Resistance: EX 35 Resistance: EM 35 Resistance: I 35 Resistance: S 35 Resistance: P 35 Evasion (%) 50 Recoil Reduction 2 Offensive Hacking 20 Item Schematics ----------------- None Robot Schematics ------------------ None Fabricated ------------ Nothing Repaired ---------- Nothing Studied --------- None Alien Tech Used ----------------- None Achievements -------------- None Challenges ------------ None Game ------ Seed ZipBottomlessShearcannon Manual? 0 Play Time 00:14:23 Cumulative 227.5 hours Start 2025.12.25 @ 16:16:50 End 2025.12.25 @ 16:30:03 Sessions 1 Manual Loads 0 Difficulty Explorer Special Mode None Game No. 350 Rogue 0 Adventurer 0 Explorer 350 Win Type - Total 0 Types 0/0/0/0/0/0/0/0/0/0 Lore% 71 Gallery% 68 Achievement% 53 Wizard Run 0 Options --------- Layout 1 ASCII 0 Keyboard 0 Movement Mouse Keybinds 0 Fullscreen 1 Font 24/Smallcaps Map View 50x35 Zoom Use 0% Tactical HUD 1 Map Filters NONE Filters NONE Steam 1 RUN: 8f918dfc-9fca-4de2-846f-a6d87d2c86cc